Cogmind - Beta 16 @@@ ROGUE MODE // 2025.11.15 @ 14:11:29 Player: Kukri Man Result: Destroyed by UF-4D0(R) with Subdweller Beam Cannon Performance ------------- Evolutions (0) 0 Regions Visited (2) 400 Robots Destroyed (3) 15 Value Destroyed (47) 47 Prototype IDs (0) 0 Alien Tech Used (0) 0 Bonus (0) 0 TOTAL SCORE: 462 Bonus ------- None Cogmind --------- Core Integrity 0/250 Matter 291/300 Energy 125/125 System Corruption 0% Temperature Cool (57) Movement Core (200) Ox3 Location -10/Subcaves Parts ------- > --- POWER (1) -------- Light Ion Engine > --- PROPULSION (2) --- (None) > --- UTILITY (2) ------ Small Storage Unit Improved Terrain Scanner > --- WEAPON (2) ------- Medium Laser > --- INVENTORY (8) ---- ECM Suite Light Assault Rifle Datajack Peak State ------------ > --- POWER ------------ Light Ion Engine > --- PROPULSION ------- Aluminum Leg Aluminum Leg > --- UTILITY ---------- Small Storage Unit Improved Terrain Scanner > --- WEAPON ----------- EM Shotgun Medium Laser > --- INVENTORY -------- Light Assault Rifle [Rating: 10] Favorites ----------- Power Light Ion Engine Engine Light Ion Engine Propulsion Aluminum Leg Leg Aluminum Leg Utility Small Storage Unit Device Improved Terrain Scanner Storage Small Storage Unit Weapon Medium Laser Energy Gun Medium Laser Ballistic Gun Light Assault Rifle Build | -11 -10 -10 ------- Run | Yrd Mat Sub Slots Evolved . | . . . Power . | . . . Propulsion . | . . . Utility . | . . . Weapon . | . . . Parts Attached 10 | 7 3 . Power 1 | 1 . . Engine 1 | 1 . . Core . | . . . Reactor . | . . . Propulsion 2 | 2 . . Treads . | . . . Leg 2 | 2 . . Wheel . | . . . Hover . | . . . Flight . | . . . Utility 4 | 2 2 . Device 3 | 1 2 . Storage 1 | 1 . . Processor . | . . . Hackware . | . . . Protection . | . . . Artifact . | . . . Weapon 3 | 2 1 . Energy Gun 2 | 1 1 . Energy Cannon . | . . . Ballistic Gun 1 | 1 . . Ballistic Cannon . | . . . Launcher . | . . . Special Weapon . | . . . Impact Weapon . | . . . Slashing Weapon . | . . . Piercing Weapon . | . . . Special Melee Weapon . | . . . Unidentified Prototypes . | . . . Parts Lost 3 | . . 3 Power . | . . . Propulsion 2 | . . 2 Utility . | . . . Weapon 1 | . . 1 Highest Loss Streak 3 | . . 3 To Critical Strikes . | . . . Average Backups 1 | . 1 3 Power . | . . . Propulsion . | . . . Utility . | . . 1 Weapon . | . . 1 Tool/Special . | . . . Unused Backups 2 | . . 2 Power . | . . . Propulsion . | . . . Utility 1 | . . 1 Weapon . | . . . Tool/Special 1 | . . 1 Average Slot Usage (%) 98 | . 100 96 Engine 14 | . 14 14 Leg 27 | . 28 25 Device 14 | . 14 14 Storage 14 | . 14 14 Energy Gun 22 | . 21 26 Ballistic Gun 4 | . 7 . Peak Build Rating 10 | 9 10 10 Average Rating 8 | 4 9 9 On Entrance 6 | . 9 10 Avg Prop Armor Cover (%) . | . . . Naked Turns . | . . . Heaviest Build 14 | 12 14 14 Greatest Support 20 | 20 20 20 Greatest Overweight (x) 3 | . . 3 Average Overweight (x) . | . . . Largest Inventory Capacity 8 | 8 8 8 Average Capacity 7 | 7 8 8 Most Carried 5 | 5 3 3 Average Carried 1 | . 1 3 Final Capacity 8 | 8 8 8 Final Carried 3 | . 3 3 Class Distribution -------------------- 100% | Mutant Dominant Class ---------------- Mutant | -10/Materials Mutant | -10/Subcaves Resources | -11 -10 -10 ----------- Run | Yrd Mat Sub Matter Collected 290 | 203 . 87 Remotely . | . . . Salvage Created 129 | 85 44 . Parts 6 | 3 3 . Haulers Intercepted . | . . . Recyclers Shooed . | . . . Parts Field Recycled . | . . . Retrieved Matter . | . . . Parts Self-Destructed . | . . . Prevented . | . . . Parts Restored . | . . . Kills | -11 -10 -10 ------- Run | Yrd Mat Sub Combat Hostiles Destroyed 1 | . 1 . Guns 1 | . 1 . Classes Destroyed 3 | 2 1 . Tunneler 1 | 1 . . Recycler 1 | 1 . . Grunt 1 | . 1 . Best Kill Streak 2 | 2 1 . Combat Bots Only 1 | . 1 . Max Kills in Single Turn 1 | 1 1 . Gunslinging . | . . . Exploded . | . . . Melee . | . . . Uniques/NPCs Destroyed . | . . . Combat | -11 -10 -10 -------- Run | Yrd Mat Sub Hostile Shots Fired 50 | . 12 38 Missed 16 | . 7 9 Hits 34 | . 5 29 Projectile 34 | . 5 29 Critical Strikes 1 | . . 1 Damage Taken 702 | . 66 636 Core 272 | . 29 243 Absorbed by Shields . | . . . Core Remaining (%) 100 | 100 . . Volleys Fired 26 | 13 9 4 Largest 2 | 2 2 2 Hottest 95 | 70 95 95 Shots Fired 32 | 17 10 5 Gun 32 | 17 10 5 Cannon . | . . . Launcher . | . . . Special . | . . . Kinetic 4 | 4 . . Thermal 20 | 13 3 4 Explosive . | . . . Electromagnetic 8 | . 7 1 Robot Hit Streak 8 | 7 5 8 Robot Miss Streak 4 | 2 4 . Penetration Max . | . . . Secondary Targets . | . . . Shots Hit Robots 22 | 11 6 5 Core Hits 10 | 3 4 3 Critical Kills . | . . . Critical Parts Destroyed . | . . . Critical Strikes 2 | 1 . 1 Burn 2 | 1 . 1 Melee Attacks . | . . . Impact . | . . . Slashing . | . . . Piercing . | . . . Sneak Attacks . | . . . Combat Hostiles . | . . . Follow-up Attacks . | . . . Damage Inflicted 304 | 129 108 67 Guns 304 | 129 108 67 Cannons . | . . . Explosions . | . . . Melee . | . . . Ramming . | . . . Kinetic 17 | 17 . . Thermal 175 | 112 13 50 Explosive . | . . . Electromagnetic 112 | . 95 17 Impact . | . . . Slashing . | . . . Piercing . | . . . Highest Corruption . | . . . Average Corruption . | . . . Corruption Purged . | . . . Corruption Blocked . | . . . Overload Shots . | . . . Overflow Damage . | . . . Projectiles . | . . . Explosions . | . . . Melee . | . . . Knockbacks . | . . . Impact . | . . . Kinetic . | . . . Secondary . | . . . Self-Inflicted Damage . | . . . Shots . | . . . Rammed . | . . . Targets Rammed . | . . . Kicked . | . . . Crushed . | . . . Highest Temperature 254 | 60 47 254 Average Temperature 37 | 25 19 161 Received Heat Transfer 359 | . 36 323 Siege Activations . | . . . Martial Activations . | . . . Shielding Activations . | . . . Robots Disrupted . | . . . Combat Hostiles . | . . . Robots Corrupted . | . . . Combat Hostiles . | . . . Parts Fried . | . . . Impact Corruptions . | . . . Robots Melted . | . . . Combat Hostiles . | . . . Parts Melted 2 | 2 . . Heat Transferred 666 | 407 37 222 Parts Sabotaged . | . . . Parts Stolen . | . . . Parts Stripped . | . . . Power Chain Reactions . | . . . Alert | -11 -10 -10 ------- Run | Yrd Mat Sub Maximum Alert Level . | . . . Low Security (%) 100 | 100 100 . Level 1 . | . . . Level 2 . | . . . Level 3 . | . . . Level 4 . | . . . Level 5 . | . . . High Security . | . . . Max Security . | . . . Peak Influence 20 | 5 20 . Initial . | . . . Average 2 | 1 2 . Influence Increases 45 | 10 35 . Destroy 0b10 Robot/C 20 | . 20 . Destroy 0b10 Robot/NC 10 | 10 . . Lose Combat Pursuer 15 | . 15 . Influence Decreases 45 | 10 25 10 Entered New Map 6 | . . 6 Time Decay 39 | 10 25 4 Squads Dispatched . | . . . Investigation . | . . . Extermination . | . . . Reinforcement . | . . . Assault . | . . . Garrison . | . . . Intercept . | . . . Searches Triggered . | . . . Construction Impeded . | . . . Haulers Reinforced . | . . . Active Scanning Responses . | . . . Cargo Convoy Interrupts . | . . . Stealth | -11 -10 -10 --------- Run | Yrd Mat Sub Distress Signals 1 | . 1 . Communications Jammed . | . . . Distress Signals . | . . . Times Spotted 19 | . 7 12 Peak Tracking Total 12 | . 3 12 Tactical Retreats 1 | . 1 . Traps | -11 -10 -10 ------- Run | Yrd Mat Sub Traps Triggered . | . . . Indirectly . | . . . Trap Hack Attempts . | . . . Triggered . | . . . Disarmed . | . . . Reprogrammed . | . . . Reused . | . . . Traps Extracted . | . . . Installed . | . . . Triggered . | . . . Machines | -11 -10 -10 ---------- Run | Yrd Mat Sub Machines Disabled . | . . . Max in Single Turn . | . . . Machines Repaired . | . . . Machines Dismantled . | . . . Machines Sabotaged . | . . . Overloaded Fab Kills . | . . . Hacking | -11 -10 -10 --------- Run | Yrd Mat Sub Machines Accessed 1 | . 1 . Terminals 1 | . 1 . Fabricators . | . . . Repair Stations . | . . . Recycling Units . | . . . Scanalyzers . | . . . Garrison Access . | . . . Total Hacks 1 | . 1 . Successful 1 | . 1 . Failed . | . . . Catastrophic . | . . . Database Lockouts . | . . . Manual . | . . . Terminals 1 | . 1 . Fabricators . | . . . Repair Stations . | . . . Recycling Units . | . . . Scanalyzers . | . . . Garrison Access . | . . . Terminal Hacks 1 | . 1 . Record 1 | . 1 . Fabricator Hacks . | . . . Repair Station Hacks . | . . . Recycling Unit Hacks . | . . . Scanalyzer . | . . . Garrison Access Hacks . | . . . Unauthorized Hacks . | . . . Terminals . | . . . Fabricators . | . . . Repair Stations . | . . . Recycling Units . | . . . Scanalyzers . | . . . Garrison Access . | . . . Data Cores Recovered . | . . . Used . | . . . Hacking Detections 1 | . 1 . Full Trace Events . | . . . Feedback Events . | . . . Feedback Blocked . | . . . Robot Schematics Acquired . | . . . Robots Built . | . . . Authchips . | . . . Time . | . . . Total Robot Build Rating . | . . . Part Schematics Acquired . | . . . Parts Built . | . . . Authchips . | . . . Time . | . . . Total Part Build Rating . | . . . Part Studies Acquired . | . . . Parts Repaired . | . . . Time . | . . . Parts Recycled . | . . . Recycled Matter . | . . . Retrieved Matter . | . . . Retrieved Components . | . . . Parts Scanalyzed . | . . . Part Schematics Acquired . | . . . Parts Damaged . | . . . Bothacking | -11 -10 -10 ------------ Run | Yrd Mat Sub Used RIF Installer . | . . . Robots Hacked . | . . . Non-combat . | . . . Combat . | . . . Robot Hacks Applied . | . . . Relay Couplers Released . | . . . Fabnet Peak Effective % . | . . . Robots Rewired . | . . . Allies Hacked . | . . . Hacks Repelled . | . . . Allies | -11 -10 -10 -------- Run | Yrd Mat Sub Total Allies . | . . . Largest Group . | . . . Highest-Rated Group . | . . . Highest-Rated Ally . | . . . Total Orders . | . . . Ally Attacks . | . . . Total Damage . | . . . Kills . | . . . Allies Corrupted . | . . . Allies Melted . | . . . Intel | -11 -10 -10 ------- Run | Yrd Mat Sub Active Infowar (turns) 352 | 5 246 101 Sensors 3 | . 3 . Terrain 349 | 5 243 101 Robot Analysis Total . | . . . Derelict Logs Recovered . | . . . Drone Launches . | . . . Drone Recoveries . | . . . Exploration | -11 -10 -10 ------------- Run | Yrd Mat Sub Turns Passed 433 | 83 249 101 Spaces Moved 306 | 48 183 75 Core 26 | 23 . 3 Treads . | . . . Legs 280 | 25 183 72 Wheels . | . . . Hover . | . . . Flight . | . . . Fastest Speed 50 | 50 120 120 Average Speed 115 | 86 120 123 Slowest Speed 200 | 120 120 200 Overloaded Moves . | . . . Propulsion Burnouts . | . . . Robots Hopped . | . . . Potential Cave-ins . | . . . Cave-ins Triggered . | . . . Exploration Rate (%) 16 | 4 36 8 Regions Visited 2 Branch Regions 1 Pre-discovered Areas . | . . . Known Exits Taken . | . . . Unknown Exits Taken 2 | 1 1 . Scrap Searched . | . . . Spaces Dug . | . . . Terrain Destroyed . | . . . Melee . | . . . Projectile . | . . . AOE . | . . . Terrain Rammed . | . . . Walls Destroyed . | . . . Machines Disabled . | . . . Actions | -11 -10 -10 --------- Run | Yrd Mat Sub Total 354 | 73 202 79 Wait . | . . . Move 304 | 47 182 75 Hop . | . . . Pick Up 11 | 6 5 . Fast Attach 1 | 1 . . Attach 8 | 6 2 . Detach . | . . . Swap 2 | . 2 . Drop 2 | . 2 . Fire 26 | 13 9 4 Melee . | . . . Ram . | . . . Kick . | . . . Crush . | . . . Escape Stasis . | . . . Rewire . | . . . Trap . | . . . Miscellaneous . | . . . Route ------- -11/Scrapyard -10/Materials (discovered 2 exits: [*Mat] / [*Sub]) -10/Subcaves History --------- Turn | Location | Event 17 | -11/Scrapyard | Discovered new exit (range 16) 84 | -11/Scrapyard | Entered Materials 217 | -10/Materials | Discovered new exit (range 8) 281 | -10/Materials | Discovered new exit (range 11) 304 | -10/Materials | Build established: Mutant 333 | -10/Materials | Entered Subcaves 420 | -10/Subcaves | Ambushed by swarm of Subdwellers 420 | -10/Subcaves | Ambushed by Subdwellers from Twisted Machinery 420 | -10/Subcaves | Ambushed by Subdwellers from Twisted Machinery 423 | -10/Subcaves | Ambushed by Subdwellers from Twisted Machinery 424 | -10/Subcaves | Ambushed by Subdwellers from Twisted Machinery 424 | -10/Subcaves | Ambushed by Subdwellers from Twisted Machinery 429 | -10/Subcaves | Core integrity fell below 50% 430 | -10/Subcaves | Core integrity fell below 20% 434 | -10/Subcaves | Destroyed by UF-4D0(R) with Subdweller Beam Cannon Last Messages --------------- Twisted Machinery. 00424_ E2-7TU(R) angrily emerges from the Twisted Machinery. 00426_ Aluminum Leg destroyed. 00426_ Q3-DZV(R) destroyed. 00426_ BK-KMP(R) destroyed. 00427_ Acquired 45 matter. 00427_ AE-NGJ(R) suffers critical hit (Burn). 00427_ Critical hit (Meltdown: +260). 00428_ AE-NGJ(R) destroyed. 00428_ Aluminum Leg destroyed. 00429_ Z1-G49(O) collects matter. 00429_ WV-WEJ(R) destroyed. 00429_ UF-4D0(R) suffers critical hit (Destroy). 00432_ Z1-G49(O) collects matter. 00432_ E2-7TU(R) suffers critical hit (Destroy). 00432_ E2-7TU(R) destroyed. 00433_ UF-4D0(R) affixes Scrap Shield Fragment to Scrap Shield. 00433_ Acquired 5 matter. Map ----- +----------------------------------------------------+ | | | ?????????????????????????????????????????????????? | | ?????????????????????????????????????????????????? | | ?????????????????????????????????????????????????? | | ?????????????????????????????????????????????????? | | ?????????????????????????????????????????????????? | | ?????????????????????????????????????????????????? | | ?????????????????????????????????????????????????? | | ?????????????????????????????????????????????????? | | ????????????????????????????????#????????????????? | | ?????????????????????????????????????????????????? | | ?????????????????????????????????????????????????? | | ???????????????????#?????????????????????????????? | | ?????????????????????????????????????????????????? | | ?????????????????????????#???????????#???????????? | | ??????????????????######?###?????????????????????? | | ???????????????#?## ## ### #????????#????#???????? | | ?????????????##### #?????????????????????? | | ????????????## ####????#???? ????????? | | ????????????# #??????????????????? | | ????????#???## #??????????????????? | | ??????????#??### % #??????????????????? | | ??????????#????## ##O&[&#????????? ????????? | | ????????????????#### ###!!hR#??????????????????? | | ???????????????#??## ##&%=R!##??????????????????? | | ????????????????### ###@&*R #??????????????????? | | ??????########??## #?##RR!##??????????????????? | | ??##### %#### ##?## R#??????????????????? | | ?## ##?## ?????????????????? | | ?# ##?# ??????????????? | | ?# ### ### ?????????????? | | ?# ## ##?# ### ### #????????????? | | ?# #####?# #??###??? #?? ????????? | | ?## ###??# #####????????? ??????????? | | ?## #?## #?????????????? ??????????? | | ?# #??#### #??????????????? ??????????? | | ?# ##?????## #?????????????????????????? | | ?## ##??????# ##????????????????????????? | | ?# ##??#??# ???#????#????????????????? | | ?## ##????## ?? ? ??????????????????? | | ?# ##????# ???????????????????????? | | ## #?#??# ???????????????????????? | | # " " ##???### #?????????????????????????? | | # " % #??#?? ##?????????????????????????? | | " &# ##????# ##???????????????????????????? | | # $ # #????? ?????????????????????????????? | | # "" ### #??????? ?????????????????????????????? | | ## %#?????????????????????????????????????? | | ?# #??????? %???????????????????????????? | | ?## ### !##????? ??????????????????????????? | +----------------------------------------------------+ Best States ------------- Heat Dissipation 25 Energy Generation 10 Energy Capacity 125 Matter Stores 286 Matter Capacity 300 Sight Range 16 Terrain Scan Range 16 Terrain Scan Density 10 Evasion (%) 55 Item Schematics ----------------- None Robot Schematics ------------------ None Fabricated ------------ Nothing Repaired ---------- Nothing Studied --------- None Alien Tech Used ----------------- None Achievements -------------- None Challenges ------------ None Game ------ Seed ForcePlasmaGun Manual? 0 Play Time 00:08:46 Cumulative 2.7 hours Start 2025.11.15 @ 14:03:35 End 2025.11.15 @ 14:11:29 Sessions 1 Manual Loads 0 Difficulty Rogue Special Mode None Game No. 7 Rogue 5 Adventurer 2 Explorer 0 Win Type - Total 0 Types 0/0/0/0/0/0/0/0/0/0 Lore% 2 Gallery% 5 Achievement% 4 Wizard Run 0 Options --------- Layout 1 ASCII 0 Keyboard 0 Movement Mouse Keybinds 0 Fullscreen 1 Font 32/SmallcapsGlow Map View 50x40 Zoom Use 0% Tactical HUD 1 Map Filters NONE Filters NONE Steam 1 RUN: 357dd98f-c7ce-49a1-bf3b-4f3d392f363b